bitfinex/quotes_SOLUSD_20260214
["timestamp","ask_amount","ask_price","bid_price","bid_amount"]
[1771030501213,0.78805379,85.069,85.03,3.82539976]
[1771030501414,0.78805379,85.049,85.011,11.76318358]
[1771030501602,0.78805379,85.049,85.007,11.7637165]
[1771030501913,58.0,85.051,85.007,11.7637165]
[1771030501914,0.78805379,85.039,85.007,11.7637165]
[1771030504726,0.78805379,85.037,84.994,30.32]
[1771030505104,0.78805379,85.037,85.0,3.82539976]
[1771030506917,3.82539976,85.04,85.0,3.82539976]
[1771030506918,0.78805379,85.035,85.0,3.82539976]
[1771030507408,0.78805379,85.033,85.0,3.82539976]
[1771030508012,0.78805379,85.029,84.994,11.76544319]
[1771030509215,0.78805379,85.029,85.0,3.82539976]
[1771030509607,0.78805379,85.028,84.994,11.76544319]
[1771030509807,0.78805379,85.019,84.97,3.82539976]
[1771030510320,0.78805379,85.019,84.98,3.82539976]
[1771030510526,11.76221506,85.018,84.98,3.82539976]
[1771030510699,0.78805379,85.017,84.98,3.82539976]
[1771030510904,0.78805379,85.017,84.981,11.76733622]
[1771030512226,0.78805379,85.017,84.98,3.82539976]
[1771030513105,0.78805379,85.015,84.97,3.82539976]
[1771030513304,0.78805379,85.009,84.97,3.82539976]
[1771030513721,0.78805379,85.009,84.97,15.60790195]
[1771030514523,0.78805379,85.009,84.97,3.82539976]
[1771030515728,0.78805379,85.007,84.971,11.76872109]
[1771030517132,0.78805379,85.005,84.971,11.76872109]
[1771030518040,29.40622941,85.016,84.971,11.76872109]
[1771030518041,0.78805379,85.018,84.99,3.82539976]
[1771030519327,0.78805379,85.017,84.99,3.82539976]
[1771030519530,0.78805379,85.022,84.99,3.82539976]
[1771030519718,0.78805379,85.022,85.0,3.82539976]
[1771030520236,58.12,85.033,84.981,29.41825102]
[1771030520237,0.78805379,85.033,85.01,3.82539976]
[1771030521931,0.78805379,85.033,85.0,3.82539976]
[1771030523121,0.78805379,85.04,85.01,3.82539976]
[1771030524930,0.78805379,85.04,85.02,3.82539976]
[1771030525528,0.78805379,85.054,85.03,3.82539976]
[1771030526642,0.78805379,85.054,85.02,3.82539976]
[1771030527347,0.78805379,85.054,85.021,11.76180002]
[1771030527656,0.78805379,85.054,85.03,3.82539976]
[1771030529466,0.78805379,85.06,85.04,3.82539976]
[1771030529680,0.78805379,85.06,85.016,4.61729252]
[1771030529979,41.14221481,85.071,84.99,3.82539976]
[1771030529980,0.78805379,85.029,84.99,3.82539976]
[1771030531461,11.76083172,85.028,84.991,11.76595168]
[1771030531664,0.78805379,85.027,84.991,11.76595168]
[1771030532058,0.78805379,85.025,84.991,11.76595168]
[1771030533169,0.78805379,85.025,84.99,3.82539976]
[1771030533355,0.78805379,85.025,84.99,15.59137191]
[1771030535747,0.78805379,85.025,85.0,3.82539976]
[1771030536272,0.78805379,85.034,85.0,3.82539976]
[1771030537272,0.78805379,85.034,84.99,41.18119747]
[1771030537273,0.78805379,85.034,85.01,3.82539976]
[1771030538863,0.78805379,85.034,85.01,3.8286602]
[1771030539973,0.78805379,85.041,85.02,3.8286602]
[1771030542566,0.78805379,85.041,85.021,11.76180002]
[1771030542770,0.78805379,85.051,85.03,3.8286602]
[1771030543169,0.78805379,85.051,85.021,11.76180002]
[1771030543170,0.78805379,85.039,84.936,61.9]
[1771030543372,0.78805379,85.029,84.98,3.8286602]
[1771030543559,0.78805379,85.027,84.98,3.8286602]
[1771030544277,0.78805379,85.024,84.981,11.76733622]
[1771030544984,0.78805379,85.024,84.99,3.8286602]
[1771030545361,0.78805379,85.024,84.961,30.28]
[1771030545362,0.78805379,85.019,84.961,30.28]
[1771030545697,0.78805379,84.999,84.96,4.0286602]
[1771030545870,0.78805379,84.997,84.96,4.0286602]
[1771030546367,0.78805379,84.995,84.96,4.0286602]
[1771030547468,0.78805379,84.993,84.96,4.0286602]
[1771030547981,58.26,84.992,84.96,4.0286602]
[1771030548199,11.76553639,84.994,84.98,3.8286602]
[1771030548200,9.79286038,84.994,84.98,3.8286602]
[1771030549584,11.76387549,85.006,84.98,3.8286602]
[1771030550267,0.69397956,85.005,84.98,3.8286602]
[1771030550471,11.76415227,85.004,84.98,3.8286602]
[1771030550669,0.69397956,85.003,84.98,3.8286602]
[1771030550884,0.69397956,85.003,84.98,4.55160483]
[1771030551390,0.69397956,85.003,84.98,3.8286602]
[1771030553378,0.69397956,85.01,84.99,4.55140054]
[1771030553610,0.69397956,85.016,84.991,0.72274034]
[1771030555374,0.69397956,85.014,84.991,0.72274034]
[1771030556189,0.69397956,85.014,85.0,3.8286602]
[1771030557084,0.69397956,85.019,85.0,3.8286602]
[1771030561506,0.69397956,85.019,84.99,3.8286602]
[1771030561678,0.69829325,85.017,84.99,3.8286602]
[1771030563287,0.69829325,85.015,84.991,0.72203172]
[1771030563605,12.45972524,85.024,85.001,0.72203172]
[1771030563898,0.69829325,85.023,85.001,0.72203172]
[1771030564577,0.69829325,85.031,85.01,3.8286602]
[1771030564897,0.69829325,85.031,85.001,0.72203172]
[1771030565495,0.69829325,85.031,85.002,11.76442907]
[1771030565696,0.69829325,85.031,85.003,0.72190663]
[1771030566003,0.69829325,85.056,85.021,0.72190663]
[1771030566176,0.69829325,85.045,85.021,0.72190663]
[1771030566598,0.69829325,85.045,85.03,3.8286602]
[1771030567198,0.69829325,85.054,85.04,3.8286602]
[1771030567695,0.69829325,85.054,85.03,3.8286602]
[1771030568282,0.69829325,85.054,85.031,11.76041678]
[1771030569906,58.74,85.06,85.04,3.8286602]
[1771030570215,0.69829325,85.059,85.04,3.8286602]
[1771030572583,58.74,85.06,85.041,0.72150262]
[1771030572882,0.69829325,85.065,85.05,3.8286602]
[1771030573594,0.69829325,85.077,85.051,0.72144499]
[1771030573799,0.69829325,85.077,85.06,3.8286602]
[1771030573976,58.78,85.085,85.04,3.8286602]
[1771030573977,0.69829325,85.075,85.04,3.8286602]
[1771030574811,0.69829325,85.073,85.041,0.72139151]
[1771030576987,0.69829325,85.071,85.041,0.72139151]
[1771030578287,0.69829325,85.07,85.04,3.8286602]
[1771030578780,0.69829325,85.07,85.029,11.76063242]
[1771030578990,0.69829325,85.067,85.03,3.8286602]
[1771030579203,0.69829325,85.066,85.03,3.8286602]
[1771030580411,0.69829325,85.064,85.04,3.8286602]
[1771030580707,0.69829325,85.064,85.03,4.54971935]
[1771030581900,0.69829325,85.064,85.015,0.72099895]
[1771030582208,0.69829325,85.059,85.031,0.72095]
[1771030582394,0.69829325,85.059,85.04,3.8286602]
[1771030582598,0.69829325,85.057,85.04,3.8286602]
[1771030582886,0.69829325,85.057,85.032,0.72095]
[1771030584510,0.69829325,85.057,85.04,3.8286602]
[1771030584709,11.75696012,85.056,85.038,0.72086933]
[1771030585224,12.45525337,85.056,85.038,0.72086933]
[1771030588393,0.69829325,85.056,85.04,4.54936068]
[1771030590791,0.69829325,85.063,85.042,0.70913333]
[1771030591793,3.8286602,85.09,85.041,11.75903387]
[1771030591794,0.75429895,85.108,85.05,3.8286602]
[1771030591997,0.75429895,85.108,85.08,3.8286602]
[1771030593292,0.75429895,85.106,85.08,3.8286602]
[1771030594613,0.75429895,85.106,85.067,11.75531005]
[1771030594815,0.75429895,85.104,85.06,3.8286602]
[1771030595119,0.75429895,85.099,85.06,3.8286602]
[1771030595300,0.75429895,85.099,85.05,15.5864365]
[1771030595811,0.75429895,85.099,85.06,3.8286602]
[1771030596004,0.75429895,85.099,85.07,3.8286602]
[1771030596317,0.75429895,85.099,85.06,3.8286602]
[1771030596916,0.75429895,85.097,85.06,15.58496454]
[1771030598018,0.75429895,85.095,85.06,15.58496454]
[1771030598912,0.75429895,85.095,85.06,15.57994663]
[1771030599908,29.37547735,85.105,85.06,15.57994663]
[1771030599909,11.75170987,85.094,85.07,3.82364229]
[1771030600097,0.75429895,85.093,85.06,3.82364229]
[1771030601413,0.75429895,85.091,85.06,3.82364229]
[1771030602814,0.75429895,85.089,85.06,3.82364229]
[1771030603420,0.75429895,85.089,85.07,3.82364229]
[1771030603724,0.75429895,85.101,85.08,3.82364229]
[1771030605098,11.75088131,85.1,85.08,3.82364229]
[1771030605600,0.75429895,85.099,85.08,3.82364229]
[1771030607221,0.75429895,85.118,85.09,3.82364229]
[1771030608608,0.75429895,85.116,85.09,3.82364229]
[1771030609514,0.75429895,85.116,85.08,3.82364229]
[1771030610014,0.75429895,85.116,85.09,3.82364229]
[1771030613230,11.74881043,85.115,85.09,3.82364229]
[1771030613529,0.75429895,85.114,85.059,30.18]
[1771030613733,0.75429895,85.109,85.07,3.82364229]
[1771030613930,0.75429895,85.107,85.08,3.82364229]
[1771030615018,0.75429895,85.105,85.08,3.82364229]
[1771030616920,0.75429895,85.105,85.09,3.82364229]
[1771030617436,0.75429895,85.123,85.1,3.82364229]
[1771030617634,0.75429895,85.12,85.09,3.82364229]
[1771030618537,0.75429895,85.118,85.09,3.82364229]
[1771030619617,0.75429895,85.116,85.09,3.82364229]
[1771030620250,0.75429895,85.116,85.08,3.82364229]
[1771030620935,0.75429895,85.109,85.07,3.82364229]
[1771030621743,0.75429895,85.098,85.06,3.82364229]
[1771030622039,0.75429895,85.098,85.061,11.75626903]
[1771030624940,0.75429895,85.096,85.07,3.82364229]
[1771030625433,0.75429895,85.096,85.08,3.82364229]
[1771030625837,60.05429895,85.103,85.08,3.82364229]
[1771030626034,59.3,85.103,85.08,3.82364229]
[1771030626341,0.75429895,85.102,85.08,3.82364229]
[1771030627524,59.3,85.103,85.08,3.82364229]
[1771030628037,0.75429895,85.104,85.08,3.82364229]
[1771030628241,0.75429895,85.102,85.08,3.82364229]
[1771030630038,0.75429895,85.111,85.09,3.82364229]
[1771030631349,0.75429895,85.111,85.055,61.9]
[1771030631350,0.75429895,85.11,85.08,3.82364229]
[1771030633837,0.75429895,85.11,85.081,11.75350548]
[1771030640070,0.25429895,85.11,85.082,0.51922612]
[1771030640275,11.74963869,85.109,85.064,0.51988914]
[1771030640453,11.74963869,85.109,85.08,3.82364229]
[1771030640971,59.44,85.108,85.08,3.82364229]
[1771030641276,59.44,85.108,85.08,4.34353143]
[1771030641592,59.44,85.108,85.081,0.52054855]
[1771030641970,0.724404,85.107,85.081,0.52054855]
[1771030642988,59.44,85.108,85.1,3.82364229]
[1771030643197,59.44,85.108,85.091,0.52119183]
[1771030643392,0.724404,85.112,85.091,0.52119183]
[1771030643686,0.724404,85.119,85.1,3.82364229]
[1771030644067,0.724404,85.119,85.101,0.5218255]
[1771030647164,0.724404,85.119,85.1,3.82364229]
[1771030649998,0.724404,85.119,85.1,4.34911478]
[1771030650797,59.48,85.126,85.101,0.52606584]
[1771030650798,0.724404,85.124,85.101,0.52606584]
[1771030652998,0.74138029,85.122,85.101,0.52606584]
[1771030655381,0.74138029,85.127,85.103,0.52700918]
[1771030655581,0.74138029,85.127,85.11,4.35065147]
[1771030655775,59.58,85.128,85.11,0.59078709]
[1771030655977,0.74138029,85.139,85.11,0.59078709]
[1771030656477,0.74138029,85.138,85.11,0.59078709]
[1771030656779,59.6,85.14,85.121,0.52715898]
[1771030657290,0.74138029,85.143,85.121,0.52715898]
[1771030662095,11.74492697,85.144,85.121,0.52715898]
[1771030663481,11.74492697,85.144,85.101,29.37672275]
[1771030663482,0.70592601,85.148,85.13,3.81873657]
[1771030666184,0.70592601,85.148,85.123,0.52864508]
[1771030670800,0.70592601,85.148,85.13,3.81873657]
[1771030671888,0.70592601,85.148,85.131,0.52927411]
[1771030672088,1.10987091,85.152,85.132,0.52927411]
[1771030672284,0.70592601,85.151,85.132,0.52927411]
[1771030672692,0.70592601,85.151,85.11,0.52939726]
[1771030672693,0.70592601,85.15,85.11,0.52939726]
[1771030672908,0.70592601,85.15,85.121,0.52939726]
[1771030675904,0.70592601,85.15,85.13,3.81873657]
[1771030679013,0.70592601,85.148,85.13,3.81873657]
[1771030681214,0.72757009,85.151,85.131,0.53042513]
[1771030681397,0.72757009,85.151,85.131,12.27702742]
[1771030681711,0.72757009,85.151,85.132,0.53053629]
[1771030682691,0.72757009,85.151,85.131,11.74660229]
[1771030682892,0.72757009,85.149,85.11,3.81873657]
[1771030683098,0.72757009,85.147,85.101,0.53064446]
[1771030683293,0.72757009,85.147,85.1,3.81873657]
[1771030683498,0.72757009,85.139,85.101,0.5307573]
[1771030683999,59.98,85.138,85.11,3.81873657]
[1771030684299,59.98,85.137,85.11,3.81873657]
[1771030684617,0.72757009,85.136,85.11,3.81873657]
[1771030684813,0.72757009,85.134,85.11,3.81873657]
[1771030684992,0.72757009,85.134,85.11,4.34960391]
[1771030685398,0.72757009,85.134,85.11,3.81873657]
[1771030687616,11.74632633,85.133,85.11,3.81873657]
[1771030687821,0.72757009,85.132,85.11,4.34992596]
[1771030688922,0.72757009,85.132,85.11,3.81873657]
[1771030689820,0.72757009,85.13,85.11,3.81873657]
[1771030690111,0.72757009,85.13,85.111,0.53140083]
[1771030690315,0.72757009,85.13,85.11,3.81873657]
[1771030691807,0.72757009,85.128,85.11,3.81873657]
[1771030692117,0.72757009,85.128,85.09,16.10260348]
[1771030692317,0.72757009,85.126,85.091,0.53170712]
[1771030692524,0.72757009,85.126,85.1,3.81873657]
[1771030693101,0.72757009,85.124,85.1,3.81873657]
[1771030694315,0.72757009,85.122,85.1,3.81873657]
[1771030696428,0.72757009,85.12,85.09,3.81873657]
[1771030696927,0.72757009,85.12,85.09,4.35084166]
[1771030697225,0.72757009,85.12,85.091,0.53210509]
[1771030697925,0.72757009,85.118,85.091,0.53210509]
[1771030698103,0.72757009,85.116,85.08,3.81873657]
[1771030699328,60.16,85.115,85.081,0.53239171]
[1771030699524,60.16,85.114,85.081,0.53239171]
[1771030699711,0.72757009,85.113,85.081,0.53239171]
[1771030699911,0.72757009,85.111,85.08,3.81873657]
[1771030700235,0.72757009,85.111,85.074,0.53239171]
[1771030700445,0.72757009,85.109,85.074,0.53239171]
[1771030701514,0.72757009,85.115,85.091,0.53257953]
[1771030702027,0.72757009,85.115,85.084,0.53257953]
[1771030702421,0.72757009,85.115,85.076,0.53266827]
[1771030702627,0.72757009,85.115,85.08,3.81873657]
[1771030703028,0.72757009,85.115,85.08,4.35140484]
[1771030703632,0.72757009,85.113,85.08,3.81873657]
[1771030704022,0.72757009,85.109,85.061,0.53275745]
[1771030704219,41.12131963,85.114,85.061,0.53275745]
[1771030704220,0.72757009,85.099,85.061,0.53275745]
[1771030705231,0.72757009,85.097,85.061,0.53275745]
[1771030706231,0.72757009,85.095,85.07,3.81873657]
[1771030708726,0.72757009,85.093,85.07,3.81873657]
[1771030709729,0.72757009,85.091,85.07,3.81873657]
[1771030710239,0.72757009,85.091,85.071,0.53335751]
[1771030710442,3.81873657,85.11,85.07,3.81873657]
[1771030710443,60.24,85.104,85.081,0.53335751]
[1771030710625,60.24,85.104,85.09,3.81873657]
[1771030711439,60.24,85.104,85.091,0.53265733]
[1771030711622,0.72608208,85.114,85.091,0.53265733]
[1771030711817,11.7490865,85.113,85.09,3.81873657]
[1771030712017,0.72608208,85.109,85.07,3.81873657]
[1771030712222,0.72608208,85.107,85.07,4.3510577]
[1771030712444,0.72608208,85.106,85.062,0.53232113]
[1771030712625,0.72608208,85.104,85.062,0.53232113]
[1771030712844,0.72608208,85.104,85.07,3.81873657]
[1771030713822,0.72608208,85.099,85.066,0.53232113]
[1771030714054,0.72608208,85.099,85.071,0.53199389]
[1771030716742,0.72608208,85.097,85.071,0.53199389]
[1771030719925,0.71006577,85.102,85.071,0.53199389]
[1771030720126,60.32,85.101,85.071,0.53199389]
[1771030720434,0.71006577,85.1,85.081,0.52946986]
[1771030720839,0.71006577,85.1,85.08,3.81873657]
[1771030721030,0.71006577,85.105,85.081,0.52946986]
[1771030722248,11.750329,85.104,85.081,0.52946986]
[1771030722744,12.46039477,85.104,85.081,0.52946986]
[1771030722950,0.71006577,85.103,85.081,0.52946986]
[1771030723153,0.71006577,85.103,85.08,3.82236499]
[1771030723529,0.71006577,85.103,85.08,4.35093447]
[1771030723937,0.71006577,85.103,85.081,0.52856948]
[1771030725930,11.75060515,85.102,85.081,0.52856948]
[1771030726138,12.46067092,85.102,85.081,0.52856948]
[1771030727235,0.71006577,85.103,85.081,0.52856948]
[1771030727950,0.71006577,85.103,85.074,0.52741556]
[1771030728851,0.71006577,85.103,85.061,11.75616854]
[1771030729154,0.71006577,85.089,85.061,11.75616854]
[1771030729355,0.71006577,85.086,85.055,0.52686885]
[1771030729548,0.71006577,85.079,85.05,0.52686885]
[1771030729848,0.71006577,85.079,85.049,11.75790694]
[1771030730043,0.71006577,85.079,85.045,11.75845141]
[1771030730436,0.71006577,85.077,85.045,11.75845141]
[1771030730960,0.71006577,85.077,85.046,0.52660335]
[1771030731253,0.71006577,85.075,85.048,0.52660335]
[1771030732855,0.71006577,85.075,85.05,0.52607901]
[1771030734535,0.56959621,85.075,85.05,0.52607901]
[1771030739844,0.71006577,85.074,85.05,0.52607901]
[1771030740457,0.71006577,85.072,85.041,0.66517953]
[1771030740758,0.71006577,85.069,85.03,30.48]
[1771030740955,0.75969058,85.067,85.031,11.76041678]
[1771030741344,0.75969058,85.059,85.021,0.66491072]
[1771030741647,0.75969058,85.049,85.02,0.2]
[1771030742252,0.75969058,85.047,85.02,0.2]
[1771030742453,0.75969058,85.045,85.02,0.2]
[1771030742654,0.75969058,85.045,85.015,0.66477303]
[1771030743356,0.75969058,85.043,85.015,0.66477303]
[1771030743552,0.75969058,85.043,85.016,11.76249176]
[1771030743760,12.51760576,85.05,85.021,0.66464804]
[1771030744566,11.75725469,85.054,85.031,0.66451721]
[1771030744763,12.51694527,85.054,85.031,0.66451721]
[1771030745165,12.51621082,85.06,85.031,0.66451721]
[1771030745347,0.75969058,85.059,85.031,0.66451721]
[1771030745668,0.75969058,85.057,85.031,0.66451721]
[1771030749369,0.75969058,85.055,85.024,0.66392573]
[1771030750589,0.75969058,85.053,85.024,0.66392573]
[1771030752377,0.75969058,85.053,85.031,0.66358615]
[1771030752874,11.75655984,85.059,85.031,0.66358615]
[1771030752875,0.75969058,85.058,85.031,0.66358615]
[1771030755302,0.75969058,85.056,85.031,0.66358615]
[1771030756001,0.75969058,85.056,85.032,0.6632517]
[1771030760201,11.75709834,85.055,85.032,0.6632517]
[1771030760377,0.75969058,85.054,85.026,0.66273136]
[1771030762702,0.75969058,85.052,85.026,0.66273136]
[1771030763897,0.75969058,85.05,85.021,0.66242352]
[1771030764997,0.75969058,85.05,85.016,0.66233055]
[1771030765204,0.75969058,85.049,85.011,0.66223275]
[1771030765882,0.75969058,85.047,85.011,0.66223275]
[1771030766206,0.75969058,85.045,85.011,0.66223275]
[1771030767602,0.75969058,85.043,85.012,12.42508664]
[1771030767805,0.75969058,85.043,85.013,0.66204143]
[1771030768491,0.75969058,85.043,85.021,0.66194724]
[1771030769316,0.75969058,85.041,85.013,0.66185891]
[1771030770900,0.75969058,85.041,85.017,0.66167062]
[1771030771095,0.75969058,85.041,85.021,0.66158683]
[1771030771309,12.51878222,85.041,85.021,0.66158683]
[1771030771498,0.72463036,85.04,85.015,0.66158683]
[1771030776215,0.72463036,85.04,85.021,0.66117588]
[1771030776995,60.68,85.049,85.013,0.66117588]
[1771030776996,0.72463036,85.038,85.013,0.66117588]
[1771030780015,0.72463036,85.038,85.009,30.58]
[1771030780016,0.75487676,85.051,85.021,0.66084451]
[1771030780211,0.75487676,85.051,85.02,3.82236499]
[1771030780412,0.75487676,85.051,85.02,4.483131]
[1771030780800,60.7,85.055,85.009,30.58]
[1771030780801,0.75487676,85.049,85.009,30.58]
[1771030781015,0.75487676,85.049,85.011,0.66076601]
[1771030781511,0.75487676,85.049,85.01,3.82858594]
[1771030782514,0.75487676,85.047,85.01,16.25251339]
[1771030784317,0.75487676,85.045,85.01,16.25251339]
[1771030785816,0.75487676,85.045,85.01,15.5919079]
[1771030786506,0.75487676,85.043,85.01,15.5919079]
[1771030789822,0.75487676,85.041,85.01,15.5919079]
[1771030792421,0.75487676,85.039,85.01,15.5919079]
[1771030794126,0.75487676,85.039,85.011,0.65977437]
[1771030795117,11.75917215,85.04,85.01,15.5919079]
[1771030795118,0.75487676,85.037,85.01,3.82858594]
[1771030795502,0.75487676,85.037,85.01,15.59186968]
[1771030796219,0.75487676,85.037,85.01,16.25151419]
[1771030796617,0.75487676,85.037,85.01,15.59186968]
[1771030798518,0.75487676,85.019,84.98,1e-08]
[1771030798704,3.82858594,84.99,84.98,1e-08]
[1771030798906,48.98,84.989,84.97,1e-08]
[1771030799321,61.22,85.011,84.981,0.7638223]
[1771030799625,61.28,85.046,85.001,0.7638223]
[1771030799924,61.28,85.046,85.01,3.82858594]
[1771030800111,5.36086188,85.045,84.987,0.7638223]
[1771030800432,5.36086188,85.039,84.97,1e-08]
[1771030800718,3.83252327,85.01,84.97,1e-08]
[1771030800920,61.36,85.009,84.97,1e-08]
[1771030801111,3.83252327,85.01,84.972,0.7638223]
[1771030801312,61.34,85.009,84.972,0.7638223]
[1771030801720,3.83252327,85.0,84.97,1e-08]
[1771030802716,11.76484429,84.999,84.97,1e-08]
[1771030804329,3.83252327,84.99,84.97,1e-08]
[1771030804931,11.76484429,84.999,84.971,0.7638223]
[1771030805122,61.34,84.991,84.971,0.7638223]
[1771030805909,61.34,84.991,84.97,1e-08]
[1771030805910,11.76609012,84.99,84.97,1e-08]
[1771030808521,45.01383871,84.99,84.97,1e-08]
[1771030809138,0.02001064,84.989,84.97,1e-08]
[1771030809316,11.76609012,84.99,84.97,1e-08]
[1771030809317,0.02001064,84.987,84.97,1e-08]
[1771030809634,3.83252327,85.0,84.96,1e-08]
[1771030809635,11.76761317,84.979,84.96,1e-08]
[1771030809829,41.1866461,84.979,84.96,1e-08]
[1771030812018,61.48,84.978,84.96,1e-08]
[1771030812339,61.48,84.977,84.96,1e-08]
[1771030812521,3.83252327,84.97,84.94,0.2]
[1771030814738,11.7689981,84.969,84.94,4.03252327]
[1771030814943,61.58,84.968,84.951,0.77383092]
[1771030815439,103.5,84.987,84.951,0.77383092]
[1771030815440,61.62,84.967,84.951,0.77383092]
[1771030815845,47.02890428,85.055,84.951,0.77383092]
[1771030816016,47.02890428,85.055,84.941,11.77287764]
[1771030816017,3.83252327,84.99,84.942,0.77383092]
[1771030816220,61.64,84.989,84.951,0.77383092]
[1771030816940,41.18228455,84.988,84.951,0.77383092]
[1771030817442,61.64,84.987,84.951,0.77383092]
[1771030818346,61.64,84.986,84.951,0.77383092]
[1771030818643,61.66,84.985,84.941,0.77383092]
[1771030819214,73.42692083,84.984,84.942,0.77383092]
[1771030820242,73.42692083,84.984,84.951,0.77383092]
[1771030820928,11.76512112,84.997,84.971,0.77383092]
[1771030821233,11.76512112,84.997,84.951,0.77383092]
[1771030821630,3.83252327,84.99,84.941,0.77383092]
[1771030821825,3.83252327,84.98,84.941,0.77383092]
[1771030822029,61.8,84.979,84.941,0.77383092]
[1771030822223,41.18713078,84.978,84.941,0.77383092]
[1771030823226,0.02038127,84.977,84.941,0.77383092]
[1771030823626,0.02038127,84.969,84.94,0.2]
[1771030823842,41.18713078,84.978,84.951,0.77383092]
[1771030823843,11.76775165,84.978,84.951,0.77383092]
[1771030824030,0.02038127,84.976,84.944,0.77383092]
[1771030824733,0.02171817,84.974,84.944,0.77383092]
[1771030825646,11.79002376,84.974,84.944,0.77383092]
[1771030825826,0.02303438,84.973,84.945,0.77383092]
[1771030826032,61.84,84.972,84.945,0.77383092]
[1771030827547,11.79432679,84.971,84.945,0.77383092]
[1771030828622,11.76872109,84.971,84.945,0.77383092]
[1771030828828,61.86,84.97,84.945,0.77383092]
[1771030829348,0.02688012,84.969,84.945,0.77383092]
[1771030830433,0.02938464,84.968,84.945,0.77383092]
[1771030830744,0.02938464,84.968,84.941,0.77383092]
[1771030840658,11.7689981,84.969,84.941,0.77383092]
[1771030841257,11.80357139,84.969,84.941,0.77383092]
[1771030842153,11.7689981,84.969,84.941,0.77383092]
[1771030842536,62.34,84.968,84.941,0.77383092]
[1771030843452,103.5,84.978,84.941,0.77383092]
[1771030843656,11.76789013,84.977,84.951,0.77383092]
[1771030843959,74.16789013,84.977,84.951,0.77383092]
[1771030848750,11.76789013,84.977,84.951,0.77383092]
[1771030848941,62.78,84.976,84.951,0.77383092]
[1771030849141,11.76789013,84.977,84.951,0.77383092]
[1771030849364,62.8,84.976,84.951,0.77383092]
[1771030849543,0.03801596,84.975,84.951,0.77383092]
[1771030850863,11.7681671,84.975,84.951,0.77383092]
[1771030852459,0.03909013,84.974,84.941,0.77383092]
[1771030852662,0.03909013,84.969,84.941,0.77383092]
[1771030853249,0.03944468,84.959,84.94,0.2]
[1771030853450,0.03944468,84.957,84.94,0.2]
[1771030854563,11.77066045,84.957,84.94,0.2]
[1771030854745,0.03979089,84.956,84.94,0.2]
[1771030855370,63.18,84.955,84.94,0.2]
[1771030855669,0.04012377,84.954,84.94,0.2]
[1771030856363,63.24,84.953,84.94,0.2]
[1771030856572,75.0517641,84.953,84.94,0.2]
[1771030857063,75.0517641,84.953,84.92,4.034824]
[1771030857064,75.01130097,84.953,84.92,4.034824]
[1771030857270,0.7677757,84.952,84.92,4.034824]
[1771030857772,0.7677757,84.952,84.92,0.2]
[1771030858071,0.7677757,84.95,84.92,0.2]
[1771030858967,0.7677757,84.948,84.92,0.2]
[1771030859370,0.7677757,84.948,84.921,0.73030877]
[1771030860585,0.7677757,84.948,84.91,0.2]
[1771030860586,0.7677757,84.939,84.91,0.2]
[1771030860753,0.7677757,84.937,84.911,0.73030877]
[1771030861079,63.3,84.938,84.9,0.2]
[1771030861080,0.61883332,84.919,84.9,0.2]
[1771030861279,0.61986795,84.917,84.9,0.2]
[1771030861586,0.61986795,84.917,84.889,0.76242613]
[1771030861872,63.3,84.918,84.882,0.76242613]
[1771030861873,0.61986795,84.909,84.882,0.76242613]
[1771030862267,0.62089007,84.907,84.882,0.76242613]
[1771030863270,0.62189964,84.905,84.882,0.76242613]
[1771030864576,75.07773066,84.906,84.88,0.2]
[1771030864577,0.6229035,84.899,84.88,0.2]
[1771030864774,63.9429035,84.898,84.88,0.2]
[1771030864979,0.6229035,84.897,84.88,0.2]
[1771030865366,0.62389373,84.895,84.88,0.2]
[1771030865954,0.62389373,84.895,84.875,0.76242613]
[1771030867194,63.34,84.894,84.875,0.76242613]
[1771030867686,12.40534556,84.893,84.875,0.76242613]
[1771030867897,0.62581133,84.889,84.87,0.2]
[1771030868092,0.62581133,84.889,84.87,1e-08]
[1771030868474,0.6267644,84.879,84.87,1e-08]
[1771030868672,0.6267644,84.877,84.87,1e-08]
[1771030868983,41.22836982,84.893,84.87,1e-08]
[1771030868984,63.36,84.876,84.87,1e-08]
[1771030869189,62.55970277,84.875,84.87,1e-08]
[1771030869387,63.36,84.879,84.87,1e-08]
[1771030869685,62.57970277,84.881,84.87,3.83482401]
[1771030869895,62.57970277,84.881,84.871,0.76242613]
[1771030870087,62.57970277,84.881,84.87,1e-08]
[1771030870293,0.75104538,84.891,84.87,1e-08]
[1771030870294,63.4,84.884,84.87,1e-08]
[1771030871786,0.75104538,84.883,84.87,1e-08]
[1771030874696,63.44,84.882,84.87,1e-08]
[1771030874899,63.44,84.881,84.87,1e-08]
[1771030878609,11.77995052,84.89,84.87,1e-08]
[1771030878610,64.25104538,84.891,84.871,0.19828101]
[1771030878804,0.75104538,84.891,84.871,0.19828101]
[1771030879313,63.5,84.893,84.871,0.19828101]